bitfinex-derivatives/quotes_ETHF0:USTF0_20260203
["timestamp","ask_amount","ask_price","bid_price","bid_amount"]
[1770146291471,0.22196456,2186.5,2184.1,2.678318]
[1770146291669,11.99053583,2188.9,2185.0,0.00490627]
[1770146291869,12.60589895,2188.9,2184.3,0.22914]
[1770146292174,2.40477001,2187.4,2185.0,0.22906]
[1770146292372,2.40477001,2187.2,2185.0,0.00386738]
[1770146292672,0.00530889,2187.4,2185.8,0.00490627]
[1770146292876,0.00530889,2187.4,2185.6,3.669]
[1770146293171,0.00530889,2187.4,2185.3,0.22903]
[1770146293376,2.6388989,2187.4,2185.0,0.00386738]
[1770146293567,2.40477001,2187.3,2185.7,0.00490627]
[1770146293772,2.40477001,2187.3,2185.6,0.00490627]
[1770146293969,2.40477001,2187.3,2185.8,2.449158]
[1770146294375,2.40477001,2187.3,2185.1,2.449158]
[1770146294570,2.40477001,2187.3,2185.6,2.449158]
[1770146294975,2.40477001,2187.3,2185.1,2.449158]
[1770146295176,0.2289,2186.6,2185.1,2.449158]
[1770146295372,2.40477001,2185.2,2183.5,2.449158]
[1770146295576,2.40477001,2185.2,2183.7,2.45301557]
[1770146295775,2.63377001,2185.7,2183.7,2.449158]
[1770146295980,2.63378001,2185.6,2183.9,2.449158]
[1770146296379,2.40477001,2185.5,2184.0,0.00385757]
[1770146296578,0.22905,2185.2,2184.0,2.45301557]
[1770146296777,2.40477001,2185.5,2184.0,2.45301557]
[1770146296978,0.00573045,2185.6,2184.2,0.00490627]
[1770146297279,0.22907,2185.0,2184.0,0.00385757]
[1770146297479,2.40477001,2185.4,2184.0,0.00385757]
[1770146298082,2.40477001,2185.4,2184.0,0.00876384]
[1770146298277,2.40477001,2185.4,2184.0,2.45301557]
[1770146298479,0.00573045,2185.6,2184.5,0.00490627]
[1770146298680,0.00573045,2185.6,2184.4,0.00490627]
[1770146298986,0.00573045,2185.6,2184.4,2.449158]
[1770146299179,0.00573045,2185.6,2184.8,0.00490627]
[1770146299780,0.00573045,2185.6,2183.9,2.4542749]
[1770146300178,0.00573045,2185.6,2184.3,2.449158]
[1770146300383,2.40477001,2187.0,2184.9,2.449158]
[1770146300583,2.70383082,2187.4,2185.2,2.31097743]
[1770146300784,0.22887,2186.9,2185.3,2.31097743]
[1770146300984,2.47501082,2186.3,2184.8,2.31097743]
[1770146301181,0.22903,2185.4,2184.1,2.31097743]
[1770146301380,0.23252014,2185.4,2184.1,2.31097743]
[1770146301878,0.00349014,2185.4,2184.1,2.31097743]
[1770146304682,0.23252014,2185.4,2184.1,2.31097743]
[1770146304890,2.70407082,2185.2,2183.9,0.0051169]
[1770146305492,2.47501082,2185.2,2183.9,0.0051169]
[1770146305690,0.00349014,2185.4,2183.9,2.31609433]
[1770146306286,0.22903,2185.4,2183.9,2.31609433]
[1770146306694,0.22905,2185.2,2183.9,2.31609433]
[1770146307194,0.23482645,2185.2,2183.9,2.31609433]
[1770146307793,0.00577645,2185.2,2183.9,2.31609433]
[1770146308489,0.22914,2184.4,2183.4,2.31097743]
[1770146308687,0.22909,2184.8,2182.8,2.54027743]
[1770146308887,0.22909,2184.8,2183.0,2.54024743]
[1770146309092,0.22911,2184.7,2183.0,2.31097743]
[1770146309292,0.22916,2184.2,2183.0,2.31097743]
[1770146309595,3.664,2185.1,2182.6,2.31097743]
[1770146309596,0.22921,2183.7,2182.6,2.31097743]
[1770146309795,1.9058164,2183.9,2181.9,2.31097743]
[1770146309995,0.22924,2183.4,2181.9,2.31097743]
[1770146310190,0.22919,2183.9,2181.9,2.31097743]
[1770146310391,1.9058164,2184.3,2182.5,2.31097743]
[1770146310392,0.22914,2184.3,2182.5,2.31097743]
[1770146310690,0.22914,2184.3,2183.3,2.31097743]
[1770146310691,0.00505867,2184.3,2183.3,2.31097743]
[1770146310996,0.22905,2185.2,2183.3,2.54021743]
[1770146311188,1.85177659,2185.4,2183.3,2.54021743]
[1770146311394,0.22908,2184.9,2183.3,2.31097743]
[1770146311690,1.85177659,2185.4,2183.3,2.31097743]
[1770146311894,1.85177659,2185.4,2183.7,2.31097743]
[1770146311895,0.22905,2185.2,2183.7,2.31097743]
[1770146312094,0.22904,2185.3,2183.7,2.31097743]
[1770146312290,0.22905,2185.2,2183.7,2.31097743]
[1770146312494,0.0051998,2185.4,2183.7,2.31097743]
[1770146312795,0.0051998,2185.4,2183.7,2.54017743]
[1770146312994,0.2342298,2185.4,2183.7,2.54017743]
[1770146313394,0.22904,2185.3,2183.7,2.31097743]
[1770146314297,0.0051998,2185.4,2183.7,2.54017743]
[1770146315295,0.0051998,2185.4,2184.0,2.31097743]
[1770146315492,0.0051998,2185.4,2184.3,2.31097743]
[1770146315691,0.0051998,2185.4,2184.3,2.31446747]
[1770146315894,0.22889,2186.8,2185.0,2.31097743]
[1770146316095,0.22889,2186.8,2185.1,2.31097743]
[1770146316298,3.664,2187.2,2185.5,2.31097743]
[1770146316595,1.75910427,2187.7,2185.8,2.31097743]
[1770146316596,0.22883,2187.3,2185.8,2.31097743]
[1770146316796,0.23357824,2187.3,2185.8,2.31097743]
[1770146317099,0.22884,2187.2,2185.9,2.31097743]
[1770146317297,0.00474824,2187.3,2185.9,2.31097743]
[1770146317298,0.22886,2187.0,2185.9,2.31460508]
[1770146317494,0.00474824,2187.3,2185.9,2.31460508]
[1770146317799,1.76385251,2187.3,2185.9,0.00362765]
[1770146318399,0.22889,2186.8,2185.9,0.00362765]
[1770146318603,1.76385251,2187.3,2185.9,2.31460508]
[1770146318996,0.00474824,2187.3,2185.9,2.31460508]
[1770146319196,0.22884,2187.2,2185.9,2.31460508]
[1770146319402,0.22886,2187.0,2185.9,2.31460508]
[1770146319795,0.22891,2186.5,2185.4,2.31097743]
[1770146320000,0.22893,2186.4,2185.4,2.31097743]
[1770146320196,5.42785267,2186.8,2184.8,2.31097743]
[1770146320400,0.22895,2186.2,2184.8,2.31097743]
[1770146320700,1.78965927,2186.4,2184.8,2.31097743]
[1770146320893,0.22901,2185.6,2184.8,0.00445717]
[1770146321098,0.2342352,2185.6,2184.8,0.00445717]
[1770146321401,0.0052252,2185.6,2184.8,2.3154346]
[1770146322397,3.66146241,2186.8,2184.8,2.3154346]
[1770146322398,1.79742578,2187.0,2184.8,5.9784346]
[1770146322599,0.22891,2186.5,2184.9,2.31097743]
[1770146322900,0.22893,2186.3,2184.9,2.31097743]
[1770146323499,0.00398266,2186.3,2185.4,2.31097743]
[1770146323795,0.22882,2187.4,2185.7,2.31097743]
[1770146324200,0.2289,2186.7,2185.5,2.31097743]
[1770146324399,0.22892,2186.4,2185.5,2.31097743]
[1770146324600,0.23444405,2186.4,2185.5,2.31097743]
[1770146325302,0.00552405,2186.4,2185.5,2.31097743]
[1770146325499,0.22894,2186.3,2184.9,2.31097743]
[1770146325803,3.663,2187.0,2185.4,2.31097743]
[1770146326602,0.22882,2187.4,2185.8,2.31097743]
[1770146326802,0.22882,2187.4,2185.9,2.31097743]
[1770146327003,0.23317725,2187.4,2185.9,2.31097743]
[1770146327199,3.663,2188.0,2186.2,2.31097743]
[1770146327503,0.22871,2188.5,2186.6,2.31097743]
[1770146327705,0.22871,2188.5,2186.8,2.31097743]
[1770146328201,0.23360119,2188.5,2186.8,2.31537586]
[1770146328507,2.00734148,2188.5,2186.9,2.31097743]
[1770146328897,0.22879,2187.7,2186.8,0.00439843]
[1770146329202,0.2288,2187.6,2186.8,0.00439843]
[1770146329601,0.22883,2187.3,2186.0,2.31097743]
[1770146329905,0.2288,2187.6,2186.0,2.31097743]
[1770146330502,7.32346241,2187.9,2186.0,2.31597603]
[1770146330697,0.22886,2187.0,2186.0,2.31597603]
[1770146331296,2.22737815,2187.5,2186.0,2.31597603]
[1770146331503,0.22881,2187.5,2186.0,2.31597603]
[1770146331705,0.22883,2187.3,2186.0,2.31597603]
[1770146332004,0.22887,2186.9,2186.0,2.31597603]
[1770146332202,0.23290953,2186.9,2186.0,2.31597603]
[1770146332502,0.23290953,2186.9,2186.0,0.0049986]
[1770146332698,0.00403953,2186.9,2186.0,0.0049986]
[1770146332898,0.2289,2186.6,2186.0,0.0049986]
[1770146333298,0.2289,2186.6,2185.2,2.07083539]
[1770146333299,0.22895,2186.2,2185.2,4.39157876]
[1770146333603,0.22895,2186.2,2185.3,2.32074337]
[1770146333794,1.90405535,2186.5,2185.2,2.07083539]
[1770146333997,0.22897,2186.0,2185.2,2.07083539]
[1770146334197,0.22897,2185.9,2185.2,2.07567618]
[1770146334800,0.22899,2185.8,2185.2,2.07567618]
[1770146335099,0.37726439,2186.0,2184.5,2.50697424]
[1770146335305,3.66146241,2185.4,2183.8,2.5637555]
[1770146335505,0.22909,2184.8,2183.8,2.5637555]
[1770146335707,3.662,2185.1,2183.8,2.5637555]
[1770146335899,0.00333466,2185.1,2184.7,2.5637555]
[1770146336104,3.66146241,2186.6,2184.7,2.5637555]
[1770146336304,0.22898,2185.9,2184.7,2.5637555]
[1770146337000,0.23266501,2185.9,2184.7,2.5637555]
[1770146337201,0.00368501,2185.9,2184.7,2.5637555]
[1770146338200,0.00368501,2185.9,2183.9,8.86458887]
[1770146338201,2.49325201,2185.8,2183.9,2.5040752]
[1770146338400,0.22908,2184.9,2183.8,0.0056115]
[1770146338600,0.00368501,2185.9,2183.8,0.0056115]
[1770146338800,2.49693702,2185.9,2183.8,3.6676115]
[1770146339004,0.00368501,2185.9,2184.1,0.22916]
[1770146340204,0.23266501,2185.9,2184.2,2.50697424]
[1770146340400,0.22899,2185.8,2184.2,2.50697424]
[1770146340600,0.00368501,2185.9,2184.2,2.50697424]
[1770146340806,0.00368501,2185.9,2184.2,2.73612424]
[1770146341003,0.00368501,2185.9,2184.2,2.50697424]
[1770146341004,0.22904,2185.3,2184.2,2.50697424]
[1770146341305,0.22904,2185.3,2183.8,2.51258574]
[1770146341504,3.662,2185.4,2184.2,2.50697424]
[1770146342102,3.89103,2185.4,2184.2,2.50697424]
[1770146342307,3.662,2185.4,2184.2,2.50697424]
[1770146342609,2.49693702,2185.9,2184.2,2.50697424]
[1770146343002,0.22905,2185.3,2184.2,2.50697424]
[1770146343307,6.15625201,2185.3,2183.8,0.0056115]
[1770146343504,0.22902,2185.5,2183.8,2.51258574]
[1770146343807,2.49325201,2185.6,2183.8,2.51258574]
[1770146344302,0.22907,2185.1,2183.8,2.51258574]
[1770146344905,2.49325201,2185.3,2183.8,2.51258574]
[1770146345507,0.22902,2185.5,2183.8,2.51258574]
[1770146345806,2.49325201,2187.1,2185.0,2.50697424]
[1770146346005,2.49325201,2187.0,2185.0,2.50697424]
[1770146346209,2.72211201,2187.0,2185.0,2.50697424]
[1770146346407,2.72206201,2187.5,2185.6,2.50697424]
[1770146346705,2.72206201,2187.5,2185.1,3.66146241]
[1770146346706,6.15625201,2188.8,2186.8,2.50697424]
[1770146346908,3.66717955,2188.8,2187.0,2.50697424]
[1770146347106,0.00417955,2188.8,2187.0,2.73583424]
[1770146347306,0.00417955,2188.8,2187.2,2.50697424]
[1770146347505,3.663,2189.7,2187.7,2.50697424]
[1770146347804,3.663,2189.7,2187.8,2.50697424]
[1770146348008,0.22858,2189.8,2188.0,2.50697424]
[1770146348409,0.2287,2188.5,2187.3,2.50697424]
[1770146348710,2.49325201,2188.6,2186.8,2.51202206]
[1770146348903,0.2288,2187.6,2186.8,7.82e-06]
[1770146349216,2.49325201,2188.2,2186.8,2.50698206]
[1770146349510,2.49325201,2188.2,2186.8,7.82e-06]
[1770146349702,0.00368501,2188.0,2186.8,7.82e-06]
[1770146349900,0.00483924,2188.0,2186.8,7.82e-06]
[1770146350104,0.00368501,2187.9,2186.8,7.82e-06]
[1770146350301,0.23359924,2188.0,2186.8,7.82e-06]
[1770146350302,0.00368501,2187.3,2186.8,7.82e-06]
[1770146350506,0.22878,2187.8,2186.0,2.50697424]
[1770146350705,2.49693702,2187.6,2186.0,2.50697424]
[1770146350911,0.00483924,2188.0,2186.0,2.50697424]
[1770146351108,0.00483924,2188.0,2186.2,6.16843665]
[1770146351407,2.49325201,2188.8,2186.8,2.50697424]
[1770146351608,3.662,2189.2,2187.8,0.22877]
[1770146351905,6.15525201,2190.1,2188.1,2.73571424]
[1770146352109,6.15525201,2190.1,2188.1,2.50697424]
[1770146352110,2.49325201,2190.0,2188.1,2.50697424]
[1770146352312,2.49693702,2190.0,2188.1,2.50697424]
[1770146352510,3.66468501,2189.9,2188.1,2.50697424]
[1770146352706,3.661,2190.8,2188.1,2.50697424]
[1770146353011,2.49325201,2191.4,2189.7,2.50697424]
[1770146353204,0.22196456,2191.5,2189.9,2.50697424]
[1770146353406,0.00368501,2191.0,2189.4,2.50697424]
[1770146353612,2.49325201,2191.0,2188.5,2.50697424]
[1770146353907,2.49325201,2190.5,2188.5,2.51154919]
[1770146354111,0.22852,2190.2,2188.5,2.51154919]
[1770146354314,0.00406161,2191.0,2188.7,2.50697424]
[1770146354510,0.00406161,2191.0,2189.4,2.50697424]
[1770146354714,0.00406161,2191.0,2189.6,2.50697424]
[1770146354909,0.00406161,2191.0,2189.8,2.73554424]
[1770146355114,0.00368501,2190.8,2189.8,2.50697424]
[1770146355410,2.13725702,2190.7,2189.3,2.50697424]
[1770146355711,0.2285,2190.5,2188.6,2.50697424]
[1770146356016,3.66,2190.6,2188.6,2.50697424]
[1770146356312,3.659,2190.6,2188.6,2.73566424]
[1770146356608,0.00406161,2191.0,2189.5,0.22859]
[1770146356813,0.00406161,2191.0,2189.8,2.50697424]
[1770146357413,2.49325201,2194.1,2190.5,3.66146241]
[1770146357610,2.49325201,2194.1,2192.3,2.50697424]
[1770146357812,2.49325201,2194.6,2192.6,2.50697424]
[1770146358311,2.49325201,2194.6,2191.3,5.28696481]
[1770146358312,2.49325201,2194.3,2191.8,2.50697424]
[1770146358510,0.22818,2193.5,2192.5,0.00377877]
[1770146358810,2.49325201,2194.3,2191.7,2.50697424]
[1770146359015,0.22812,2194.1,2191.9,2.50697424]
[1770146359215,2.49325201,2194.3,2191.9,2.50697424]
[1770146359413,2.36885201,2194.3,2191.9,2.50697424]
[1770146359612,0.23312373,2194.6,2191.9,2.50697424]
[1770146359818,0.22809,2194.4,2191.9,2.73531424]
[1770146360013,3.66304373,2194.6,2191.9,2.50697424]
[1770146360208,3.88962241,2193.7,2191.9,2.5110351]
[1770146360414,0.22823,2193.0,2191.9,0.00406086]
[1770146360609,3.657,2192.9,2191.9,0.00406086]
[1770146360815,0.00525356,2193.0,2191.9,2.39961525]
[1770146361220,1.09326594,2196.3,2192.3,3.66146241]
[1770146361514,1.09326594,2196.3,2192.7,2.62381439]
[1770146361515,2.47205781,2195.4,2192.7,2.62381439]
[1770146361718,2.47205781,2195.1,2192.7,2.62381439]
[1770146361916,2.70007781,2195.1,2192.7,2.62381439]
[1770146362117,2.70007781,2195.1,2192.9,2.39555439]
[1770146362118,6.35607781,2195.1,2192.9,2.39555439]
[1770146362415,0.22805,2194.8,2192.9,2.39555439]
[1770146362613,2.47205781,2194.7,2192.9,2.39555439]
[1770146362812,3.65936402,2195.1,2192.9,2.39555439]
[1770146362813,0.2281,2194.3,2192.9,2.39555439]
[1770146363214,0.2282,2193.3,2192.0,2.39555439]
[1770146363418,0.00457472,2193.3,2192.4,2.39555439]
[1770146364020,2.47205781,2194.8,2192.4,2.39555439]
[1770146364220,2.47205781,2194.7,2192.4,2.39555439]
[1770146364419,3.66146241,2195.1,2192.6,2.39555439]
[1770146364420,3.655,2194.9,2192.6,2.39555439]
[1770146365017,0.00419791,2194.9,2192.9,2.39555439]
[1770146365213,0.00419791,2194.9,2192.9,2.62379439]
[1770146365511,0.00419791,2194.9,2193.1,2.39555439]
[1770146365716,3.65819791,2194.9,2193.1,2.39555439]
[1770146366014,0.00419791,2194.9,2193.8,0.22814]
[1770146366320,0.22796,2195.6,2193.9,2.39555439]
[1770146366516,3.654,2195.8,2193.9,2.62368439]
[1770146366717,2.69402237,2196.5,2194.7,2.62360439]
[1770146366923,0.22196456,2196.5,2194.7,2.62360439]
[1770146367116,0.22593664,2196.5,2194.9,2.39555439]
[1770146367319,0.22593664,2196.5,2193.9,3.653]
[1770146367320,2.47205781,2197.7,2195.5,2.39555439]
[1770146367615,0.22781,2197.1,2195.5,2.39555439]
[1770146368319,0.00456008,2197.1,2195.5,2.40051771]
[1770146368720,0.22785,2196.7,2195.5,0.00496332]
[1770146368916,0.22785,2196.7,2195.0,2.39555439]
[1770146369218,0.22799,2195.4,2193.8,2.39555439]
[1770146369517,2.47205781,2198.4,2194.7,2.39555439]
[1770146369716,2.47205781,2196.6,2194.7,2.39555439]
[1770146369918,2.47205781,2196.0,2194.7,0.00460167]
[1770146370113,0.22794,2195.9,2194.7,0.00460167]
[1770146370318,2.47601643,2196.6,2194.7,2.40015606]
[1770146370522,0.22788,2196.4,2194.7,2.40015606]
[1770146370720,0.22793,2195.9,2194.7,2.40015606]
[1770146371118,3.651,2195.8,2194.7,2.40015606]
[1770146371325,0.22797,2195.6,2194.2,2.39555439]
[1770146371524,0.22799,2195.3,2193.7,2.39555439]
[1770146371821,6.13352022,2196.1,2193.7,2.39555439]
[1770146372018,2.47205781,2196.1,2193.7,2.39555439]
[1770146372217,2.47205781,2195.9,2194.0,2.39555439]
[1770146372424,0.22799,2195.4,2194.0,2.39891414]
[1770146372827,3.65,2195.3,2194.0,2.39891414]
[1770146373324,6.3324613,2195.3,2194.0,0.00335975]
[1770146373625,3.65,2195.4,2194.0,2.39891414]
[1770146373825,3.65,2195.3,2194.0,2.39891414]
[1770146374124,3.65,2195.2,2194.0,2.39891414]
[1770146374322,6.0850959,2195.2,2194.0,0.00335975]
[1770146374521,0.22808,2194.5,2192.8,2.39555439]
[1770146374726,3.65,2194.4,2192.8,2.39555439]
[1770146374926,3.65,2194.3,2192.8,2.39555439]
[1770146375127,2.4350959,2195.1,2192.8,2.39555439]
[1770146375326,3.62910303,2196.1,2192.8,2.39555439]
[1770146375327,3.65,2194.2,2192.8,2.39555439]
[1770146375524,0.00356514,2194.2,2192.8,2.40144748]
[1770146375929,3.65,2194.1,2192.8,2.40144748]
[1770146376226,0.22819,2193.4,2192.8,0.00589309]
[1770146376429,2.36379947,2193.7,2191.9,2.39555439]
[1770146376624,0.22815,2193.9,2191.9,2.39555439]
[1770146376822,2.36736461,2194.2,2191.9,2.62389439]
[1770146377128,3.87812,2194.1,2192.2,2.39555439]
[1770146377429,0.00356514,2194.2,2192.4,2.39555439]
[1770146377727,3.65,2194.1,2192.4,2.39555439]
[1770146377929,2.36379947,2194.0,2192.4,2.39555439]
[1770146378124,0.22817,2193.7,2192.4,2.39555439]
[1770146378321,3.65,2193.7,2192.4,2.39555439]
[1770146378724,0.22813,2194.0,2192.4,2.39555439]
[1770146378923,0.00356514,2194.2,2192.4,2.39555439]
[1770146379123,0.00356514,2194.2,2192.9,2.39555439]
[1770146379331,3.65,2195.3,2193.4,2.62374439]
[1770146379624,3.65,2195.4,2193.4,2.62374439]
[1770146380229,0.22801,2195.2,2193.4,2.39555439]
[1770146380526,6.00436915,2195.4,2193.4,2.39555439]
[1770146380726,0.22806,2194.7,2193.4,2.39555439]
[1770146380927,3.65,2194.6,2193.4,2.39555439]
[1770146381130,0.22809,2194.4,2193.4,2.39555439]
[1770146381427,3.50809,2194.4,2192.6,2.39555439]
[1770146381726,3.65,2194.3,2192.6,2.39555439]
[1770146382028,3.65,2194.2,2192.6,2.62382439]
[1770146382228,3.649,2194.4,2192.6,2.62382439]
[1770146382619,0.00455861,2195.4,2193.2,2.39555439]
[1770146382830,0.22801,2195.2,2193.2,2.39555439]
[1770146383033,2.32529088,2195.2,2193.2,2.39555439]
[1770146383231,0.22805,2194.8,2193.2,2.39555439]
[1770146383622,3.649,2194.8,2193.2,2.39555439]
[1770146384027,2.55330088,2195.2,2193.4,2.39555439]
[1770146384326,2.30511657,2194.6,2192.6,2.39555439]
[1770146384532,2.30511657,2193.8,2192.2,2.39986123]
[1770146384823,2.53869033,2193.8,2192.2,2.39986123]
[1770146385029,3.649,2193.7,2192.2,2.39986123]
[1770146385229,0.22819,2193.5,2191.0,2.61907742]
[1770146385424,0.00542376,2193.8,2192.2,0.22831]
[1770146385627,0.00542376,2193.8,2191.7,3.649]
[1770146385823,0.00542376,2193.8,2191.8,0.14263019]
[1770146386026,0.00542376,2193.8,2191.8,0.37098019]
[1770146386231,0.22816,2193.7,2191.8,0.00486568]
[1770146386432,0.22816,2193.7,2191.9,0.22834]
[1770146386627,0.00542376,2193.8,2192.1,0.22832]
[1770146386835,0.00542376,2193.8,2192.8,0.22825]
[1770146387033,0.00542376,2193.8,2192.4,0.22829]
[1770146387233,0.00542376,2193.8,2192.6,2.39555439]
[1770146387433,3.87708,2194.5,2192.8,2.62380439]
[1770146387633,2.47205781,2195.2,2193.3,2.39555439]
[1770146387831,2.47205781,2195.2,2193.6,2.39555439]
[1770146388128,2.47205781,2195.9,2194.0,0.22812]
[1770146388327,2.47205781,2196.4,2194.5,0.22807]
[1770146388532,2.4757971,2196.4,2194.6,2.5380619]
[1770146388828,2.69995781,2196.2,2194.8,2.39555439]
[1770146389236,2.47205781,2195.7,2194.5,0.00387493]
[1770146389533,2.47205781,2195.6,2194.5,0.00387493]
[1770146390028,2.70000781,2195.7,2193.9,2.39555439]
[1770146390229,3.27373929,2196.4,2193.9,2.39555439]
[1770146390230,2.47205781,2195.6,2193.9,2.39555439]
[1770146390425,3.649,2195.9,2193.9,2.39555439]
[1770146390733,2.53808033,2195.1,2193.5,2.38844817]
[1770146391031,2.53808033,2195.1,2193.5,2.39386749]
[1770146391528,2.31006033,2195.1,2193.5,2.39386749]
[1770146391829,2.31006033,2195.1,2193.5,0.00541932]
[1770146392034,0.22817,2193.7,2192.2,2.38844817]
[1770146392334,2.31006033,2193.9,2192.2,2.38844817]
[1770146392833,0.22814,2194.0,2192.2,2.38844817]
[1770146393033,0.22814,2194.0,2192.2,2.39336586]
[1770146393034,2.31579767,2194.0,2192.2,2.39336586]
[1770146393832,0.22815,2193.8,2192.2,2.39336586]
[1770146394231,2.57544285,2193.8,2192.2,2.39336586]
[1770146394735,2.34729285,2193.4,2192.2,0.00491769]
[1770146395133,0.2282,2193.3,2192.2,0.00491769]
[1770146395531,2.34729285,2193.8,2192.3,2.31833568]
[1770146395735,0.00573734,2194.0,2192.3,2.31833568]
[1770146396031,2.35303019,2194.0,2192.3,2.31833568]
[1770146396231,0.22814,2193.9,2192.3,2.31833568]
[1770146396536,2.57544285,2193.8,2192.3,2.31833568]
[1770146396731,0.00573734,2194.0,2192.3,2.31833568]
[1770146396931,2.34729285,2194.9,2192.9,2.31833568]
[1770146397229,2.34729285,2194.9,2193.1,2.31833568]
[1770146397430,2.57536285,2194.6,2193.1,2.31833568]
[1770146397634,2.57538285,2194.4,2193.1,2.31833568]
[1770146397830,7.90209251,2196.1,2192.2,3.65391769]
[1770146397831,2.34729285,2195.3,2193.4,2.54651568]
[1770146398037,2.35253898,2195.3,2193.4,2.54651568]
[1770146398231,2.35253898,2195.3,2193.5,2.31833568]
[1770146398232,2.34729285,2195.2,2193.5,2.31833568]
[1770146398531,3.62910303,2194.9,2192.4,14.73645071]
[1770146398730,6.72077071,2194.5,2191.6,2.56633137]
[1770146398928,3.62910303,2194.9,2191.6,2.56633137]
[1770146398929,6.72077071,2194.7,2191.6,2.56633137]
[1770146399132,0.22827,2192.7,2192.2,7.69e-06]
[1770146399336,2.9380127,2192.9,2192.2,7.69e-06]
[1770146399631,0.22825,2192.8,2192.2,7.69e-06]
[1770146399837,2.7097627,2192.6,2191.6,2.56633137]
[1770146400041,2.9380327,2192.7,2191.7,7.37137366]
[1770146400332,2.7097627,2192.5,2191.8,2.56633137]
[1770146400535,3.90879047,2192.4,2191.8,2.56633137]
[1770146400735,0.00334469,2192.4,2191.9,7.37137366]
[1770146400936,0.00334469,2192.4,2191.9,11.93137367]
[1770146401139,3.90856652,2192.3,2191.8,0.00421134]
[1770146401336,0.00334469,2192.4,2191.8,7.375585]
[1770146401641,3.90681427,2192.3,2191.8,7.375585]
[1770146401936,3.90681427,2192.2,2191.8,0.00421134]
[1770146402139,3.90681427,2192.1,2191.4,2.56633137]
[1770146402338,0.00334469,2192.4,2191.5,7.37137366]
[1770146402637,3.90482946,2192.3,2191.5,14.49770504]
[1770146402837,0.00334469,2192.4,2191.6,4.56000001]
[1770146403034,3.90437366,2192.3,2191.6,4.56361914]
[1770146403234,0.00334469,2192.4,2191.7,7.37137366]
[1770146403537,3.90252152,2192.3,2191.7,7.37137366]
[1770146403835,3.90242274,2192.2,2190.6,2.56633137]
[1770146404031,0.22843,2191.2,2190.2,2.56633137]
[1770146404232,0.22847,2190.7,2189.6,2.56633137]
[1770146404432,40.87488063,2191.1,2189.6,2.56633137]
[1770146404735,0.22837,2191.7,2190.6,2.56633137]
[1770146404932,40.87471063,2192.7,2191.0,2.31833568]
[1770146405130,2.13475004,2192.5,2191.0,2.31833568]
[1770146405334,40.64644063,2192.7,2191.2,2.31833568]
[1770146405637,0.2283,2192.4,2191.3,7.3662632]
[1770146405831,0.22833,2192.1,2190.8,2.31833568]
[1770146406033,0.23169775,2192.1,2190.9,9.68459888]
[1770146406339,40.64644063,2193.0,2191.3,2.31833568]
[1770146406544,40.64644063,2193.9,2192.4,2.31833568]
[1770146406732,0.38640863,2194.3,2193.0,2.31833568]
[1770146406938,3.651,2195.0,2193.2,2.31833568]
[1770146407232,3.651,2195.0,2193.5,2.31833568]
[1770146407436,2.00712819,2194.5,2193.0,2.31833568]
[1770146407632,2.00712819,2194.5,2192.6,3.651]
[1770146407633,0.22814,2193.9,2193.1,0.00489462]
[1770146408039,0.22819,2193.4,2192.1,2.31833568]
[1770146408237,0.22819,2193.4,2192.0,2.31833568]
[1770146408443,0.22819,2193.4,2192.1,9.68459888]
[1770146408736,3.286,2193.5,2192.1,2.31833568]
[1770146408942,0.00341483,2193.5,2192.3,2.31833568]
[1770146409339,2.02660122,2193.4,2192.1,0.00447598]
[1770146409544,0.22824,2193.0,2192.1,7.3662632]
[1770146409838,40.64644063,2193.4,2192.1,7.3662632]
[1770146410035,3.29141483,2193.5,2192.2,2.31833568]
[1770146410234,0.00341483,2193.5,2192.2,2.31833568]
[1770146410435,0.00341483,2193.5,2192.4,2.31833568]
[1770146410736,3.651,2194.3,2192.5,2.31833568]
[1770146411243,3.651,2194.3,2192.6,7.3662632]
[1770146411244,43.93844063,2194.2,2192.6,7.3662632]
[1770146411443,42.71208517,2194.0,2192.5,2.31833568]
[1770146411639,0.00552544,2194.0,2192.7,2.31833568]
[1770146411944,7.90209251,2195.3,2192.6,11.92626321]
[1770146411945,40.64644063,2195.7,2193.8,0.22815]
[1770146412239,0.22799,2195.3,2193.9,2.31833568]
[1770146412446,3.295,2195.2,2193.9,2.31833568]
[1770146412641,3.295,2195.2,2194.0,14.24459889]
[1770146412838,0.00511993,2195.2,2194.1,0.22811]
[1770146413040,3.52288,2196.4,2194.2,2.54643568]
[1770146413340,3.295,2196.5,2194.6,2.31833568]
[1770146413543,3.295,2196.5,2194.8,2.31833568]
[1770146413941,3.295,2196.5,2195.0,2.31833568]
[1770146414147,5.40421437,2196.5,2195.0,2.31833568]
[1770146414447,0.00361463,2196.5,2195.2,2.31833568]
[1770146414944,40.64644063,2197.2,2195.4,2.31833568]
[1770146414945,3.296,2197.2,2195.4,2.31833568]
[1770146415145,0.22783,2196.9,2195.4,2.31833568]
[1770146415340,2.34729285,2196.9,2195.5,6.9809628]
[1770146415537,42.99373348,2196.9,2194.1,6.9809628]
[1770146415846,7.17285,2196.8,2194.4,4.78808001]
[1770146416044,6.945,2196.8,2194.4,4.56000001]
[1770146416346,2.34729285,2196.6,2194.5,6.9809628]
[1770146416540,2.34729285,2196.6,2194.2,6.9809628]
[1770146416742,2.35134968,2196.6,2194.2,6.9809628]
[1770146416946,0.22793,2195.9,2194.2,6.9809628]
[1770146417143,3.53093,2195.9,2194.4,4.56000001]
[1770146417342,3.303,2195.9,2194.3,2.31833568]
[1770146417538,0.22792,2196.1,2194.3,2.31833568]
[1770146417842,0.00405683,2196.6,2194.5,2.31833568]
[1770146418046,9.29729285,2196.5,2194.5,2.31833568]
[1770146418247,2.34729285,2195.4,2194.0,2.3221061]
[1770146418547,40.64644063,2194.8,2192.3,12.57317059]
[1770146418744,0.22806,2194.7,2193.2,3.76489108]
[1770146419050,0.53884,2194.5,2192.3,12.57317059]
[1770146419242,0.53884,2194.2,2192.3,12.57317059]
[1770146419543,0.53884,2193.8,2192.3,3.7698622]
[1770146419741,0.22825,2192.9,2190.1,0.22853]
[1770146419941,6.956,2192.8,2190.0,2.7236222]
[1770146420145,3.309,2192.8,2190.8,4.56000001]
[1770146420350,3.309,2192.8,2190.1,2.56835014]
[1770146420549,3.309,2192.8,2189.9,5.68528946]
[1770146420550,3.309,2192.8,2191.0,2.56835014]
[1770146420751,3.311,2192.9,2191.2,2.56835014]
[1770146420949,3.311,2192.8,2191.5,2.56835014]
[1770146421146,3.649,2193.7,2191.9,2.56835014]
[1770146421347,0.23264612,2194.2,2192.1,2.56835014]
[1770146421554,0.00453612,2194.2,2192.6,2.56835014]
[1770146421748,40.64644063,2195.2,2193.1,2.56835014]
[1770146421952,6.96,2195.8,2194.1,2.56835014]
[1770146422254,3.312,2196.2,2194.6,2.56835014]